lending/lending_fUSD_20250920
["ID","MTS","AMOUNT","RATE_DAILY","PERIOD"]
[386596030,1758412258802,-2031.67,0.00022191,2]
[386596031,1758412258811,-400.0,0.00022191,2]
[386596032,1758412258821,-400.0,0.00022191,2]
[386596033,1758412258830,-906.63,0.00022191,2]
[386596034,1758412258839,-400.0,0.00022191,2]
[386596035,1758412258850,-400.0,0.00022191,2]
[386596036,1758412258859,-869.63,0.00022191,2]
[386596037,1758412258870,-1189.32,0.00022191,2]
[386596038,1758412258880,-400.0,0.00022191,2]
[386596039,1758412258889,-538.19,0.00022191,2]
[386596040,1758412258898,-400.0,0.00022191,2]
[386596041,1758412258908,-400.0,0.00022191,2]
[386596042,1758412258917,-400.0,0.00022191,2]
[386596043,1758412258926,-400.0,0.00022191,2]
[386596044,1758412258936,-433.43,0.00022191,2]
[386596045,1758412258945,-861.18,0.00022191,2]
[386596046,1758412258955,-400.0,0.00022191,2]
[386596047,1758412258964,-920.67,0.00022191,2]
[386596048,1758412258973,-400.0,0.00022191,2]
[386596049,1758412258982,-557.72,0.00022191,2]
[386596050,1758412258992,-400.0,0.00022191,2]
[386596051,1758412259003,-400.0,0.00022191,2]
[386596052,1758412259012,-650.23,0.00022191,2]
[386596053,1758412259022,-893.67,0.00022191,2]
[386596054,1758412259031,-412.62,0.00022191,2]
[386596055,1758412259040,-1257.34,0.00022191,2]
[386596056,1758412259049,-2037.66,0.00022191,2]
[386596057,1758412259059,-400.0,0.00022191,2]
[386596058,1758412259068,-400.0,0.00022191,2]
[386596059,1758412259077,-400.0,0.00022191,2]
[386596060,1758412259087,-400.0,0.00022191,2]
[386596061,1758412259097,-1309.64,0.00022191,2]
[386596062,1758412259107,-1009.57,0.00022191,2]
[386596063,1758412259117,-488.34,0.00022191,2]
[386596064,1758412259126,-836.69,0.00022191,2]
[386596065,1758412259136,-1234.66,0.00022191,2]
[386596066,1758412259145,-400.0,0.00022191,2]
[386596067,1758412259156,-566.09,0.00022191,2]
[386596068,1758412259165,-450.93,0.00022191,2]
[386596069,1758412259175,-400.0,0.00022191,2]
[386596070,1758412259184,-400.0,0.00022191,2]
[386596071,1758412259193,-400.0,0.00022191,2]
[386596072,1758412259203,-400.0,0.00022191,2]
[386596073,1758412259212,-400.0,0.00022191,2]
[386596074,1758412259221,-1192.35,0.00022191,2]
[386596075,1758412259230,-400.0,0.00022191,2]
[386596076,1758412259239,-400.0,0.00022191,2]
[386596077,1758412259249,-844.99,0.00022191,2]
[386596078,1758412259258,-400.0,0.00022191,2]
[386596079,1758412259267,-767.15,0.00022191,2]
[386596080,1758412259276,-1054.91,0.00022191,2]
[386596081,1758412259287,-533.53,0.00022191,2]
[386596082,1758412259298,-400.0,0.00022191,2]
[386596083,1758412259309,-400.0,0.00022191,2]
[386596084,1758412259321,-700.95,0.00022191,2]
[386596085,1758412259330,-400.0,0.00022191,2]
[386596086,1758412259341,-1148.08,0.00022191,2]
[386596087,1758412259350,-598.27,0.00022191,2]
[386596088,1758412259360,-400.0,0.00022191,2]
[386596089,1758412259369,-451.85,0.00022191,2]
[386596090,1758412259378,-423.38,0.00022191,2]
[386596091,1758412259387,-400.0,0.00022191,2]
[386596092,1758412259396,-1050.06,0.00022191,2]
[386596093,1758412259406,-400.0,0.00022191,2]
[386596094,1758412259419,-400.0,0.00022191,2]
[386596095,1758412259428,-400.0,0.00022191,2]
[386596096,1758412259439,-400.0,0.00022191,2]
[386596097,1758412259448,-1156.98,0.00022191,2]
[386596098,1758412259458,-400.0,0.00022191,2]
[386596099,1758412259468,-782.03,0.00022191,2]
[386596100,1758412259477,-400.0,0.00022191,2]
[386596101,1758412259487,-1282.93,0.00022191,2]
[386596102,1758412259496,-400.0,0.00022191,2]
[386596103,1758412259506,-400.0,0.00022191,2]
[386596104,1758412259515,-400.0,0.00022191,2]
[386596105,1758412259524,-400.0,0.00022191,2]
[386596106,1758412259533,-319.45365642,0.00022191,2]
[386596107,1758412259543,-400.0,0.00022191,2]
[386596108,1758412259552,-400.0,0.00022191,2]
[386596109,1758412259562,-400.0,0.00022191,2]
[386596110,1758412259571,-400.0,0.00022191,2]
[386596111,1758412259580,-400.0,0.00022191,2]
[386596112,1758412259591,-400.0,0.00022191,2]
[386596113,1758412259601,-400.0,0.00022191,2]
[386596114,1758412259611,-1694.6,0.00022191,2]
[386596115,1758412259621,-510.41,0.00022191,2]
[386596116,1758412259632,-400.0,0.00022191,2]
[386596117,1758412259644,-400.0,0.00022191,2]
[386596118,1758412259653,-775.26,0.00022191,2]
[386596119,1758412259663,-454.33,0.00022191,2]
[386596120,1758412259673,-829.1,0.00022191,2]
[386596121,1758412259683,-1140.08,0.00022191,2]
[386596122,1758412259692,-521.93,0.00022191,2]
[386596123,1758412259701,-400.0,0.00022191,2]
[386596124,1758412259710,-797.26,0.00022191,2]
[386596125,1758412259720,-400.0,0.00022191,2]
[386596126,1758412259729,-819.83,0.00022191,2]
[386596127,1758412259738,-601.88,0.00022191,2]
[386596128,1758412259746,-1355.19,0.00022191,2]
[386596129,1758412259756,-400.0,0.00022191,2]
[386596130,1758412259764,-1018.99,0.00022191,2]
[386596131,1758412259774,-404.82,0.00022191,2]
[386596132,1758412259783,-400.0,0.00022191,2]
[386596133,1758412259792,-400.0,0.00022191,2]
[386596134,1758412259802,-400.0,0.00022191,2]
[386596135,1758412259811,-673.24,0.00022191,2]
[386596136,1758412259820,-400.0,0.00022191,2]
[386596137,1758412259830,-400.0,0.00022191,2]
[386596138,1758412259839,-828.71,0.00022191,2]
[386596139,1758412259849,-400.0,0.00022191,2]
[386596140,1758412259858,-400.0,0.00022191,2]
[386596141,1758412259867,-400.0,0.00022191,2]
[386596142,1758412259876,-400.0,0.00022191,2]
[386596143,1758412259885,-400.0,0.00022191,2]
[386596144,1758412259895,-427.54,0.00022191,2]
[386596145,1758412259904,-445.36,0.00022191,2]
[386596146,1758412259914,-400.0,0.00022191,2]
[386596147,1758412259923,-1049.66,0.00022191,2]
[386596148,1758412259933,-400.0,0.00022191,2]
[386596149,1758412259942,-400.0,0.00022191,2]
[386596150,1758412259952,-400.0,0.00022191,2]
[386596151,1758412259961,-400.0,0.00022191,2]
[386596152,1758412259970,-400.0,0.00022191,2]
[386596153,1758412259979,-400.0,0.00022191,2]
[386596154,1758412259989,-400.0,0.00022191,2]
[386596155,1758412260003,-400.0,0.00022191,2]
[386596156,1758412260012,-922.16,0.00022191,2]
[386596157,1758412260022,-400.0,0.00022191,2]
[386596158,1758412260031,-400.0,0.00022191,2]
[386596159,1758412260042,-984.4,0.00022191,2]
[386596160,1758412260052,-773.63,0.00022191,2]
[386596161,1758412260062,-400.0,0.00022191,2]
[386596162,1758412260071,-577.13,0.00022191,2]
[386596163,1758412260082,-874.98,0.00022191,2]
[386596164,1758412260091,-476.51,0.00022191,2]
[386596165,1758412260101,-400.0,0.00022191,2]
[386596166,1758412260110,-3083.6,0.00022191,2]
[386596167,1758412260120,-734.4,0.00022191,2]
[386596168,1758412260129,-443.62,0.00022191,2]
[386596169,1758412260139,-1333.52,0.00022191,2]
[386596170,1758412260148,-400.0,0.00022191,2]
[386596171,1758412260159,-908.65,0.00022191,2]
[386596172,1758412260169,-1135.41,0.00022191,2]
[386596173,1758412260179,-1111.19,0.00022191,2]
[386596174,1758412260189,-400.0,0.00022191,2]
[386596175,1758412260199,-400.0,0.00022191,2]
[386596176,1758412260208,-400.0,0.00022191,2]
[386596177,1758412260218,-400.0,0.00022191,2]
[386596178,1758412260227,-1092.35,0.00022191,2]
[386596179,1758412260236,-400.0,0.00022191,2]
[386596180,1758412260246,-474.32,0.00022191,2]
[386596181,1758412260256,-879.31,0.00022191,2]
[386596182,1758412260266,-699.54,0.00022191,2]
[386596183,1758412260275,-1117.7,0.00022191,2]
[386596184,1758412260285,-822.0,0.00022191,2]
[386596185,1758412260294,-907.23,0.00022191,2]
[386596186,1758412260304,-400.0,0.00022191,2]
[386596187,1758412260313,-1205.19,0.00022191,2]
[386596188,1758412260323,-673.14,0.00022191,2]
[386596189,1758412260332,-1092.55,0.00022191,2]
[386596190,1758412260342,-506.69529155,0.00022191,2]
[386596191,1758412260351,-400.0,0.00022191,2]
[386596192,1758412260360,-548.72,0.00022191,2]
[386596193,1758412260370,-400.0,0.00022191,2]
[386596194,1758412260379,-400.0,0.00022191,2]
[386596195,1758412260389,-672.53,0.00022191,2]
[386596196,1758412260398,-401.01929729,0.00022191,2]
[386596197,1758412260407,-1453.34,0.00022191,2]
[386596198,1758412260417,-836.6,0.00022191,2]
[386596199,1758412260426,-400.0,0.00022191,2]
[386596200,1758412260436,-400.0,0.00022191,2]
[386596201,1758412260445,-710.18,0.00022191,2]
[386596202,1758412260455,-856.95,0.00022191,2]
[386596203,1758412260464,-400.0,0.00022191,2]
[386596204,1758412260474,-400.0,0.00022191,2]
[386596205,1758412260483,-400.0,0.00022191,2]
[386596206,1758412260492,-400.0,0.00022191,2]
[386596207,1758412260502,-400.0,0.00022191,2]
[386596208,1758412260511,-400.0,0.00022191,2]
[386596209,1758412260521,-400.0,0.00022191,2]
[386596210,1758412260532,-404.55,0.00022191,2]
[386596211,1758412260542,-1942.47,0.00022191,2]
[386596212,1758412260551,-1018.21,0.00022191,2]
[386596213,1758412260560,-1761.21,0.00022191,2]
[386596214,1758412260569,-400.0,0.00022191,2]
[386596215,1758412260579,-577.92,0.00022191,2]
[386596216,1758412260589,-1029.16,0.00022191,2]
[386596217,1758412260598,-400.0,0.00022191,2]
[386596218,1758412260608,-400.0,0.00022191,2]
[386596219,1758412260617,-1085.83,0.00022191,2]
[386596220,1758412260626,-400.0,0.00022191,2]
[386596221,1758412260635,-400.0,0.00022191,2]
[386596222,1758412260644,-542.2490372,0.00022191,2]
[386596223,1758412260653,-450.44,0.00022191,2]
[386596224,1758412260663,-400.0,0.00022191,2]
[386596225,1758412260673,-400.0,0.00022191,2]
[386596226,1758412260683,-759.85,0.00022191,2]
[386596227,1758412260692,-662.1,0.00022191,2]
[386596228,1758412260702,-400.0,0.00022191,2]
[386596229,1758412260712,-400.0,0.00022191,2]
[386596230,1758412260721,-400.0,0.00022191,2]
[386596231,1758412260731,-829.16,0.00022191,2]
[386596232,1758412260740,-739.56,0.00022191,2]
[386596233,1758412260749,-756.05,0.00022191,2]
[386596234,1758412260759,-460.39,0.00022191,2]
[386596235,1758412260768,-1561.7,0.00022191,2]
[386596236,1758412260777,-400.0,0.00022191,2]
[386596237,1758412260787,-400.0,0.00022191,2]
[386596238,1758412260796,-400.0,0.00022191,2]
[386596239,1758412260805,-400.0,0.00022191,2]
[386596240,1758412260815,-400.0,0.00022191,2]
[386596241,1758412260824,-400.0,0.00022191,2]
[386596242,1758412260834,-400.0,0.00022191,2]
[386596243,1758412260844,-1745.77,0.00022191,2]
[386596244,1758412260853,-1079.94,0.00022191,2]
[386596245,1758412260863,-400.0,0.00022191,2]
[386596246,1758412260872,-400.0,0.00022191,2]
[386596247,1758412260882,-400.0,0.00022191,2]
[386596248,1758412260891,-719.12,0.00022191,2]
[386596249,1758412260901,-400.0,0.00022191,2]
[386596250,1758412260911,-400.0,0.00022191,2]
[386596251,1758412260920,-400.0,0.00022191,2]
[386596252,1758412260929,-400.0,0.00022191,2]
[386596253,1758412260939,-1325.55,0.00022191,2]
[386596254,1758412260949,-487.14,0.00022191,2]
[386596255,1758412260959,-781.01,0.00022191,2]
[386596256,1758412260969,-400.0,0.00022191,2]
[386596257,1758412260979,-400.0,0.00022191,2]
[386596258,1758412260989,-400.0,0.00022191,2]
[386596259,1758412261002,-694.98,0.00022191,2]
[386596260,1758412261012,-400.0,0.00022191,2]
[386596261,1758412261022,-400.0,0.00022191,2]
[386596262,1758412261031,-781.05,0.00022191,2]
[386596263,1758412261041,-1250.89,0.00022191,2]
[386596264,1758412261051,-8730.07,0.00022191,2]
[386596265,1758412261060,-400.0,0.00022191,2]
[386596266,1758412261070,-442.59,0.00022191,2]
[386596267,1758412261079,-404.43829794,0.00022191,2]
[386596268,1758412261089,-400.0,0.00022191,2]
[386596269,1758412261099,-400.0,0.00022191,2]
[386596270,1758412261108,-468.21,0.00022191,2]
[386596271,1758412261117,-400.0,0.00022191,2]
[386596272,1758412261127,-400.0,0.00022191,2]
[386596273,1758412261136,-875.0,0.00022191,2]
[386596274,1758412261145,-471.0,0.00022191,2]
[386596275,1758412261156,-400.0,0.00022191,2]
[386596276,1758412261166,-400.0,0.00022191,2]
[386596277,1758412261175,-415.01,0.00022191,2]
[386596278,1758412261184,-2894.38,0.00022191,2]
[386596279,1758412261194,-464.42,0.00022191,2]
[386596280,1758412261203,-950.23,0.00022191,2]
[386596281,1758412261212,-400.0,0.00022191,2]
[386596282,1758412261222,-1996.87,0.00022191,2]
[386596283,1758412261231,-400.0,0.00022191,2]
[386596284,1758412261240,-400.0,0.00022191,2]
[386596285,1758412261249,-400.0,0.00022191,2]
[386596286,1758412261259,-400.0,0.00022191,2]
[386596287,1758412261268,-492.64,0.00022191,2]
[386596288,1758412261278,-400.0,0.00022191,2]
[386596289,1758412261287,-769.88,0.00022191,2]
[386596290,1758412261296,-2040.56,0.00022191,2]
[386596291,1758412261308,-400.0,0.00022191,2]
[386596292,1758412261321,-1125.16,0.00022191,2]
[386596293,1758412261331,-400.0,0.00022191,2]
[386596294,1758412261341,-848.24,0.00022191,2]
[386596295,1758412261351,-400.74,0.00022191,2]
[386596296,1758412261361,-515.58,0.00022191,2]
[386596297,1758412261371,-3276.94,0.00022191,2]
[386596298,1758412261380,-400.0,0.00022191,2]
[386596299,1758412261390,-400.0,0.00022191,2]
[386596300,1758412261399,-1044.5,0.00022191,2]
[386596301,1758412261409,-400.0,0.00022191,2]
[386596302,1758412261418,-1037.57,0.00022191,2]
[386596303,1758412261428,-722.19,0.00022191,2]
[386596304,1758412261437,-400.0,0.00022191,2]
[386596305,1758412261447,-434.16,0.00022191,2]
[386596306,1758412261456,-475.71,0.00022191,2]
[386596307,1758412261465,-509.86,0.00022191,2]
[386596308,1758412261474,-2130.18,0.00022191,2]
[386596309,1758412261483,-400.0,0.00022191,2]
[386596310,1758412261492,-710.48,0.00022191,2]
[386596311,1758412261502,-400.0,0.00022191,2]
[386596312,1758412261512,-400.0,0.00022191,2]
[386596313,1758412261522,-1289.45,0.00022191,2]
[386596314,1758412261531,-937.29,0.00022191,2]
[386596315,1758412261541,-1050.31,0.00022191,2]
[386596316,1758412261550,-400.0,0.00022191,2]
[386596317,1758412261560,-400.0,0.00022191,2]
[386596318,1758412261569,-180.32,0.00022191,2]
[386596319,1758412261579,-400.0,0.00022191,2]
[386596320,1758412261588,-400.0,0.00022191,2]
[386596321,1758412261598,-477.450709,0.00022191,2]
[386596322,1758412261607,-400.0,0.00022191,2]
[386596323,1758412261616,-1834.31,0.00022191,2]
[386596324,1758412261626,-400.0,0.00022191,2]
[386596325,1758412261636,-1431.5,0.00022191,2]
[386596326,1758412261645,-502.36,0.00022191,2]
[386596327,1758412261654,-400.0,0.00022191,2]
[386596328,1758412261663,-4406.31,0.00022191,2]
[386596329,1758412261673,-1468.89,0.00022191,2]
[386596330,1758412261682,-400.0,0.00022191,2]
[386596331,1758412261692,-400.0,0.00022191,2]
[386596332,1758412261701,-400.0,0.00022191,2]
[386596333,1758412261711,-400.0,0.00022191,2]
[386596334,1758412261721,-400.0,0.00022191,2]
[386596335,1758412261731,-411.70855902,0.00022191,2]
[386596336,1758412261740,-400.0,0.00022191,2]
[386596337,1758412261749,-400.0,0.00022191,2]
[386596338,1758412261759,-400.0,0.00022191,2]
[386596339,1758412261769,-400.0,0.00022191,2]
[386596340,1758412261778,-444.65,0.00022191,2]
[386596341,1758412261787,-8245.5,0.00022191,2]
[386596342,1758412261797,-1216.83,0.00022191,2]
[386596343,1758412261806,-1665.37,0.00022191,2]
[386596344,1758412261815,-1367.46,0.00022191,2]
[386596345,1758412261824,-2753.88,0.00022191,2]
[386596346,1758412261834,-400.0,0.00022191,2]
[386596347,1758412261843,-1107.51,0.00022191,2]
[386596348,1758412261852,-400.0,0.00022191,2]
[386596349,1758412261862,-400.0,0.00022191,2]
[386596350,1758412261871,-400.0,0.00022191,2]
[386596351,1758412261882,-2765.16,0.00022191,2]
[386596352,1758412261891,-400.0,0.00022191,2]
[386596353,1758412261901,-400.0,0.00022191,2]
[386596354,1758412261910,-832.68,0.00022191,2]
[386596355,1758412261920,-400.0,0.00022191,2]
[386596356,1758412261930,-2965.35,0.00022191,2]
[386596357,1758412261940,-400.0,0.00022191,2]
[386596358,1758412261949,-400.0,0.00022191,2]
[386596359,1758412261958,-493.64,0.00022191,2]
[386596360,1758412261968,-400.0,0.00022191,2]
[386596361,1758412261977,-400.0,0.00022191,2]
[386596362,1758412261986,-400.0,0.00022191,2]
[386596363,1758412262000,-400.0,0.00022191,2]
[386596364,1758412262010,-400.0,0.00022191,2]
[386596365,1758412262019,-400.0,0.00022191,2]
[386596366,1758412262029,-347.00966972,0.00022191,2]
[386596367,1758412262038,-1034.51,0.00022191,2]
[386596368,1758412262047,-1776.66,0.00022191,2]
[386596369,1758412262057,-1068.11,0.00022191,2]
[386596370,1758412262066,-400.0,0.00022191,2]
[386596371,1758412262075,-400.0,0.00022191,2]
[386596372,1758412262085,-400.0,0.00022191,2]
[386596373,1758412262095,-656.23,0.00022191,2]
[386596374,1758412262104,-400.0,0.00022191,2]
[386596375,1758412262114,-295.796254,0.00022191,7]
[386596376,1758412262123,-1072.05,0.00022191,2]
[386596377,1758412262132,-1818.51,0.00022191,2]
[386596378,1758412262142,-1080.14,0.00022191,2]
[386596379,1758412262151,-400.0,0.00022191,2]
[386596380,1758412262160,-1397.84,0.00022191,2]
[386596381,1758412262170,-400.0,0.00022191,2]
[386596382,1758412262179,-295.796254,0.00022191,7]
[386596383,1758412262188,-400.0,0.00022191,2]
[386596384,1758412262198,-400.0,0.00022191,2]
[386596385,1758412262207,-295.796254,0.00022191,7]
[386596386,1758412262217,-400.0,0.00022191,2]
[386596387,1758412262227,-295.796254,0.00022191,7]
[386596388,1758412262236,-400.0,0.00022191,2]
[386596389,1758412262247,-400.0,0.00022191,2]
[386596390,1758412262257,-404.1253767,0.00022191,2]
[386596391,1758412262266,-400.0,0.00022191,2]
[386596392,1758412262276,-400.0,0.00022191,2]
[386596393,1758412262286,-939.97,0.00022191,2]
[386596394,1758412262296,-1104.59,0.00022191,2]
[386596395,1758412262306,-400.0,0.00022191,2]
[386596396,1758412262315,-1525.56,0.00022191,2]
[386596397,1758412262325,-400.0,0.00022191,2]
[386596398,1758412262334,-400.0,0.00022191,2]
[386596399,1758412262344,-400.0,0.00022191,2]
[386596400,1758412262353,-1913.79,0.00022191,2]
[386596401,1758412262363,-2959.55,0.00022191,2]
[386596402,1758412262372,-400.0,0.00022191,2]
[386596403,1758412262382,-400.0,0.00022191,2]
[386596404,1758412262391,-151.0,0.00022191,7]
[386596405,1758412262400,-523.62,0.00022191,2]
[386596406,1758412262535,-400.0,0.00022191,2]
[386596407,1758412262545,-410.01286261,0.00022191,2]
[386596408,1758412262556,-511.41,0.00022191,2]
[386596409,1758412262566,-400.0,0.00022191,2]
[386596410,1758412262575,-424.54,0.00022191,2]
[386596411,1758412262584,-400.0,0.00022191,2]
[386596412,1758412262594,-916.57,0.00022191,2]
[386596413,1758412262603,-400.0,0.00022191,2]
[386596414,1758412262614,-1684.57,0.00022191,2]
[386596415,1758412262623,-400.0,0.00022191,2]
[386596416,1758412262633,-1840.84,0.00022191,2]
[386596417,1758412262643,-1384.09,0.00022191,2]
[386596418,1758412262653,-413.88,0.00022191,2]
[386596419,1758412262662,-400.0,0.00022191,2]
[386596420,1758412262672,-400.0,0.00022191,2]
[386596421,1758412262681,-500.0,0.00022191,2]
[386596422,1758412262691,-456.26,0.00022191,2]
[386596423,1758412262702,-647.72,0.00022191,2]
[386596424,1758412262713,-400.0,0.00022191,2]
[386596425,1758412262723,-1231.63,0.00022191,2]
[386596426,1758412262734,-400.0,0.00022191,2]
[386596427,1758412262743,-400.0,0.00022191,2]
[386596428,1758412262754,-556.87,0.00022191,2]
[386596429,1758412262765,-416.42439423,0.00022191,2]
[386596430,1758412262775,-400.0,0.00022191,2]
[386596431,1758412262784,-476.42,0.00022191,2]
[386596432,1758412262794,-1686.32,0.00022191,2]
[386596433,1758412262804,-400.0,0.00022191,2]
[386596434,1758412262813,-419.51,0.00022191,2]
[386596435,1758412262823,-400.0,0.00022191,2]
[386596436,1758412262832,-400.0,0.00022191,2]
[386596437,1758412262843,-400.0,0.00022191,2]
[386596438,1758412262853,-1865.24,0.00022191,2]
[386596439,1758412262863,-400.0,0.00022191,2]
[386596440,1758412262872,-1718.18,0.00022191,2]
[386596441,1758412262882,-400.0,0.00022191,2]
[386596442,1758412262892,-3496.08,0.00022191,2]
[386596443,1758412262901,-643.73,0.00022191,2]
[386596444,1758412262911,-675.85,0.00022191,2]
[386596445,1758412262921,-400.0,0.00022191,2]
[386596446,1758412262930,-400.0,0.00022191,2]
[386596447,1758412262940,-400.0,0.00022191,2]
[386596448,1758412262950,-1335.82,0.00022191,2]
[386596449,1758412262961,-570.88,0.00022191,2]
[386596450,1758412262971,-2959.43,0.00022191,2]
[386596451,1758412262981,-400.0,0.00022191,2]
[386596452,1758412262991,-400.0,0.00022191,2]
[386596453,1758412263006,-1456.61,0.00022191,2]
[386596454,1758412263017,-400.0,0.00022191,2]
[386596455,1758412263028,-697.72,0.00022191,2]
[386596456,1758412263043,-402.69684635,0.00022191,2]
[386596457,1758412263054,-1428.28,0.00022191,2]
[386596458,1758412263064,-400.0,0.00022191,2]
[386596459,1758412263075,-1685.16,0.00022191,2]
[386596460,1758412263085,-877.62,0.00022191,2]
[386596461,1758412263095,-493.36,0.00022191,2]
[386596462,1758412263106,-898.5,0.00022191,2]
[386596463,1758412263116,-400.0,0.00022191,2]
[386596464,1758412263127,-7478.64,0.00022191,2]
[386596465,1758412263137,-400.0,0.00022191,2]
[386596466,1758412263147,-400.0,0.00022191,2]
[386596467,1758412263157,-400.0,0.00022191,2]
[386596468,1758412263167,-400.0,0.00022191,2]
[386596469,1758412263177,-537.41,0.00022191,2]
[386596470,1758412263187,-429.7,0.00022191,2]
[386596471,1758412263197,-400.0,0.00022191,2]
[386596472,1758412263207,-3463.6,0.00022191,2]
[386596473,1758412263218,-400.0,0.00022191,2]
[386596474,1758412263228,-3277.98,0.00022191,2]
[386596475,1758412263238,-400.0,0.00022191,2]
[386596476,1758412263248,-400.0,0.00022191,2]
[386596477,1758412263258,-1338.48,0.00022191,2]
[386596478,1758412263268,-414.3,0.00022191,2]
[386596479,1758412263278,-624.7,0.00022191,2]
[386596480,1758412263288,-896.66,0.00022191,2]
[386596481,1758412263298,-400.0,0.00022191,2]
[386596482,1758412263308,-854.94,0.00022191,2]
[386596483,1758412263319,-400.0,0.00022191,2]
[386596484,1758412263329,-1390.16,0.00022191,2]
[386596485,1758412263338,-400.0,0.00022191,2]
[386596486,1758412263348,-400.0,0.00022191,2]
[386596487,1758412263358,-442.0,0.00022191,2]
[386596488,1758412263368,-400.0,0.00022191,2]
[386596489,1758412263378,-428.40088315,0.00022191,2]
[386596490,1758412263387,-412.9877568,0.00022191,2]
[386596491,1758412263397,-400.0,0.00022191,2]
[386596492,1758412263407,-400.0,0.00022191,2]
[386596493,1758412263417,-400.0,0.00022191,2]
[386596494,1758412263426,-400.0,0.00022191,2]
[386596495,1758412263435,-400.0,0.00022191,2]
[386596496,1758412263445,-400.0,0.00022191,2]
[386596497,1758412263454,-2117.75,0.00022191,2]
[386596498,1758412263464,-400.0,0.00022191,2]
[386596499,1758412263473,-400.0,0.00022191,2]
[386596500,1758412263483,-400.0,0.00022191,2]
[386596501,1758412263492,-400.0,0.00022191,2]
[386596502,1758412263502,-400.0,0.00022191,2]
[386596503,1758412263511,-408.13,0.00022191,2]
[386596504,1758412263522,-522.31,0.00022191,2]
[386596505,1758412263531,-400.0,0.00022191,2]
[386596506,1758412263541,-414.44,0.00022191,2]
[386596507,1758412263551,-400.0,0.00022191,2]
[386596508,1758412263561,-1276.07,0.00022191,2]
[386596509,1758412263571,-1773.97,0.00022191,2]
[386596510,1758412263581,-769.83,0.00022191,2]
[386596511,1758412263591,-400.0,0.00022191,2]
[386596512,1758412263601,-400.0,0.00022191,2]
[386596513,1758412263611,-400.0,0.00022191,2]
[386596514,1758412263620,-1321.61,0.00022191,2]
[386596515,1758412263630,-2737.82,0.00022191,2]
[386596516,1758412263640,-400.0,0.00022191,2]
[386596517,1758412263650,-8235.43,0.00022191,2]
[386596518,1758412263660,-400.0,0.00022191,2]
[386596519,1758412263669,-2142.23,0.00022191,2]
[386596520,1758412263679,-400.0,0.00022191,2]
[386596521,1758412263690,-400.0,0.00022191,2]
[386596522,1758412263700,-1741.2,0.00022191,2]
[386596523,1758412263710,-3935.61,0.00022191,2]
[386596524,1758412263719,-400.0,0.00022191,2]
[386596525,1758412263729,-2108.74,0.00022191,2]
[386596526,1758412263739,-400.0,0.00022191,2]
[386596527,1758412263749,-400.0,0.00022191,2]
[386596528,1758412263758,-669.41,0.00022191,2]
[386596529,1758412263768,-1555.95,0.00022191,2]